lending/lending_fUSD_20241124
["ID","MTS","AMOUNT","RATE_DAILY","PERIOD"]
[343183117,1732421450859,-151.0,0.00043797,14]
[343183118,1732421450868,-151.0,0.00043797,14]
[343183119,1732421450878,-151.0,0.00043797,14]
[343183120,1732421450888,-500.0,0.00043797,2]
[343183121,1732421450899,-500.0,0.00043797,2]
[343183122,1732421450914,-500.0,0.00043797,2]
[343183123,1732421450924,-500.0,0.00043797,2]
[343183124,1732421450935,-500.0,0.00043797,2]
[343183125,1732421450945,-500.0,0.00043797,2]
[343183126,1732421450955,-500.0,0.00043797,2]
[343183127,1732421450966,-500.0,0.00043797,2]
[343183128,1732421450977,-1427.83,0.00043797,2]
[343183129,1732421450988,-1427.83,0.00043797,2]
[343183130,1732421450997,-1427.83,0.00043797,2]
[343183131,1732421451008,-522.11578274,0.00043797,2]
[343183132,1732421451017,-500.0,0.00043797,2]
[343183133,1732421451026,-308.16776293,0.00043797,2]
[343183134,1732421451036,-500.0,0.00043797,2]
[343183135,1732421451047,-500.0,0.00043797,2]
[343183136,1732421451057,-500.0,0.00043797,2]
[343183137,1732421451069,-500.0,0.00043797,2]
[343183138,1732421451078,-500.0,0.00043797,2]
[343183139,1732421451088,-500.0,0.00043797,2]
[343183140,1732421451099,-500.0,0.00043797,2]
[343183141,1732421451108,-500.0,0.00043797,2]
[343183142,1732421451118,-504.32099264,0.00043797,2]
[343183143,1732421451128,-500.0,0.00043797,2]
[343183144,1732421451138,-500.0,0.00043797,2]
[343183145,1732421451148,-500.0,0.00043797,2]
[343183146,1732421451161,-539.25,0.00043797,2]
[343183147,1732421451174,-539.25,0.00043797,2]
[343183148,1732421451183,-500.0,0.00043797,2]
[343183149,1732421451194,-500.0,0.00043797,2]
[343183150,1732421451204,-168.0,0.00043797,2]
[343183151,1732421451213,-168.0,0.00043797,2]
[343183152,1732421451223,-168.0,0.00043797,2]
[343183153,1732421451233,-500.0,0.00043797,2]
[343183154,1732421451243,-500.0,0.00043797,2]
[343183155,1732421451253,-500.0,0.00043797,2]
[343183156,1732421451263,-500.0,0.00043797,2]
[343183157,1732421451272,-500.0,0.00043797,2]
[343183158,1732421451281,-500.0,0.00043797,2]
[343183159,1732421451291,-500.0,0.00043797,2]
[343183160,1732421451300,-500.0,0.00043797,2]
[343183161,1732421451310,-500.0,0.00043797,2]
[343183162,1732421451320,-500.0,0.00043797,2]
[343183163,1732421451330,-500.0,0.00043797,2]
[343183164,1732421451339,-723.02,0.00043797,2]
[343183165,1732421451348,-797.24,0.00043797,2]
[343183166,1732421451357,-797.24,0.00043797,2]
[343183167,1732421451366,-723.02,0.00043797,2]
[343183168,1732421451375,-797.24,0.00043797,2]
[343183169,1732421451383,-500.0,0.00043797,2]
[343183170,1732421451392,-500.0,0.00043797,2]
[343183171,1732421451403,-500.0,0.00043797,2]
[343183172,1732421451416,-500.0,0.00043797,2]
[343183173,1732421451425,-500.0,0.00043797,2]
[343183174,1732421451434,-500.0,0.00043797,2]
[343183175,1732421451444,-500.0,0.00043797,2]
[343183176,1732421451454,-500.0,0.00043797,2]
[343183177,1732421451464,-500.0,0.00043797,2]
[343183178,1732421451473,-500.0,0.00043797,2]
[343183179,1732421451483,-806.19,0.00043797,2]
[343183180,1732421451493,-806.19,0.00043797,2]
[343183181,1732421451502,-806.19,0.00043797,2]
[343183182,1732421451511,-500.0,0.00043797,2]
[343183183,1732421451520,-500.0,0.00043797,2]
[343183184,1732421451530,-500.0,0.00043797,2]
[343183185,1732421451539,-546.92,0.00043797,2]
[343183186,1732421451549,-500.0,0.00043797,2]
[343183187,1732421451559,-500.0,0.00043797,2]
[343183188,1732421451568,-500.0,0.00043797,2]
[343183189,1732421451578,-500.0,0.00043797,2]
[343183190,1732421451588,-500.0,0.00043797,2]
[343183191,1732421451598,-1054.97,0.00043797,2]
[343183192,1732421451608,-1054.97,0.00043797,2]
[343183193,1732421451618,-1054.97,0.00043797,2]
[343183194,1732421451627,-500.0,0.00043797,2]
[343183195,1732421451637,-500.0,0.00043797,2]
[343183196,1732421451646,-500.0,0.00043797,2]
[343183197,1732421451659,-500.0,0.00043797,2]
[343183198,1732421451669,-747.87,0.00043797,2]
[343183199,1732421451679,-747.87,0.00043797,2]
[343183200,1732421451689,-869.22,0.00043797,2]
[343183201,1732421451699,-869.22,0.00043797,2]
[343183202,1732421451709,-869.22,0.00043797,2]
[343183203,1732421451718,-500.0,0.00043797,2]
[343183204,1732421451728,-579.46856276,0.00043797,2]
[343183205,1732421451738,-500.0,0.00043797,2]
[343183206,1732421451747,-500.0,0.00043797,2]
[343183207,1732421451757,-718.12,0.00043797,2]
[343183208,1732421451767,-500.0,0.00043797,2]
[343183209,1732421451777,-571.20438377,0.00043797,2]
[343183210,1732421451787,-718.12,0.00043797,2]
[343183211,1732421451796,-500.0,0.00043797,2]
[343183212,1732421451806,-500.0,0.00043797,2]
[343183213,1732421451815,-500.0,0.00043797,2]
[343183214,1732421451825,-536.0,0.00043797,2]
[343183215,1732421451835,-500.0,0.00043797,2]
[343183216,1732421451845,-500.0,0.00043797,2]
[343183217,1732421451855,-500.0,0.00043797,2]
[343183218,1732421451865,-500.0,0.00043797,2]
[343183219,1732421451873,-500.0,0.00043797,2]
[343183220,1732421451882,-513.356322,0.00043797,2]
[343183221,1732421451892,-500.0,0.00043797,2]
[343183222,1732421451903,-513.15154785,0.00043797,2]
[343183223,1732421451916,-500.0,0.00043797,2]
[343183224,1732421451925,-500.0,0.00043797,2]
[343183225,1732421451935,-500.0,0.00043797,2]
[343183226,1732421451946,-567.44863482,0.00043797,2]
[343183227,1732421451956,-945.01,0.00043797,2]
[343183228,1732421451966,-945.01,0.00043797,2]
[343183229,1732421451978,-945.01,0.00043797,2]
[343183230,1732421451986,-500.0,0.00043797,2]
[343183231,1732421451996,-500.0,0.00043797,2]
[343183232,1732421452005,-500.0,0.00043797,2]
[343183233,1732421452015,-513.45019131,0.00043797,2]
[343183234,1732421452025,-500.0,0.00043797,2]
[343183235,1732421452034,-528.45944819,0.00043797,2]
[343183236,1732421452045,-500.0,0.00043797,2]
[343183237,1732421452054,-571.03919521,0.00043797,2]
[343183238,1732421452064,-500.0,0.00043797,2]
[343183239,1732421452074,-500.0,0.00043797,2]
[343183240,1732421452083,-160.81779614,0.00043797,2]
[343183241,1732421452093,-500.0,0.00043797,2]
[343183242,1732421452103,-500.0,0.00043797,2]
[343183243,1732421452112,-506.42362092,0.00043797,2]
[343183244,1732421452121,-500.0,0.00043797,2]
[343183245,1732421452131,-500.0,0.00043797,2]
[343183246,1732421452141,-783.45,0.00043797,2]
[343183247,1732421452150,-783.45,0.00043797,2]
[343183248,1732421452162,-500.0,0.00043797,2]
[343183249,1732421452171,-783.45,0.00043797,2]
[343183250,1732421452181,-500.0,0.00043797,2]
[343183251,1732421452190,-500.0,0.00043797,2]
[343183252,1732421452200,-500.0,0.00043797,2]
[343183253,1732421452209,-500.0,0.00043797,2]
[343183254,1732421452218,-500.0,0.00043797,2]
[343183255,1732421452227,-500.0,0.00043797,2]
[343183256,1732421452237,-289.67936038,0.00043797,2]
[343183257,1732421452247,-517.64761276,0.00043797,2]
[343183258,1732421452256,-504.15132052,0.00043797,2]
[343183259,1732421452266,-500.0,0.00043797,2]
[343183260,1732421452276,-500.0,0.00043797,2]
[343183261,1732421452285,-398.27465228,0.00043797,2]
[343183262,1732421452295,-508.16153333,0.00043797,2]
[343183263,1732421452304,-500.0,0.00043797,2]
[343183264,1732421452313,-539.20445244,0.00043797,2]
[343183265,1732421452324,-177.25622885,0.00043797,2]
[343183266,1732421452333,-500.0,0.00043797,2]
[343183267,1732421452343,-500.0,0.00043797,2]
[343183268,1732421452353,-500.0,0.00043797,2]
[343183269,1732421452362,-500.0,0.00043797,2]
[343183270,1732421452371,-500.0,0.00043797,2]
[343183271,1732421452380,-522.42183618,0.00043797,2]
[343183272,1732421452390,-500.0,0.00043797,2]
[343183273,1732421452400,-500.0,0.00043797,2]
[343183274,1732421452412,-500.0,0.00043797,2]
[343183275,1732421452421,-518.02854013,0.00043797,2]
[343183276,1732421452431,-561.29459844,0.00043797,2]
[343183277,1732421452441,-500.0,0.00043797,2]
[343183278,1732421452450,-541.5989949,0.00043797,2]
[343183279,1732421452459,-500.0,0.00043797,2]
[343183280,1732421452469,-500.0,0.00043797,2]
[343183281,1732421452478,-509.38195702,0.00043797,2]
[343183282,1732421452488,-500.0,0.00043797,2]
[343183283,1732421452498,-613.81,0.00043797,2]
[343183284,1732421452507,-613.81,0.00043797,2]
[343183285,1732421452517,-500.0,0.00043797,2]
[343183286,1732421452528,-500.0,0.00043797,2]
[343183287,1732421452537,-500.0,0.00043797,2]
[343183288,1732421452547,-948.38,0.00043797,2]
[343183289,1732421452556,-500.0,0.00043797,2]
[343183290,1732421452567,-948.38,0.00043797,2]
[343183291,1732421452576,-235.5457684,0.00043797,2]
[343183292,1732421452586,-506.50435222,0.00043797,2]
[343183293,1732421452595,-603.90676785,0.00043797,2]
[343183294,1732421452604,-507.12821265,0.00043797,2]
[343183295,1732421452613,-500.0,0.00043797,120]
[343183296,1732421452623,-500.0,0.00043797,120]
[343183297,1732421452633,-500.0,0.00043797,2]
[343183298,1732421452643,-500.0,0.00043797,2]
[343183299,1732421452654,-500.0,0.00043797,2]
[343183300,1732421452667,-500.0,0.00043797,2]
[343183301,1732421452677,-572.3806698,0.00043797,2]
[343183302,1732421452687,-500.0,0.00043797,2]
[343183303,1732421452697,-500.0,0.00043797,2]
[343183304,1732421452708,-500.0,0.00043797,2]
[343183305,1732421452718,-247.95958343,0.00043797,2]
[343183306,1732421452728,-500.0,0.00043797,2]
[343183307,1732421452739,-500.0,0.00043797,2]
[343183308,1732421452750,-500.0,0.00043797,2]
[343183309,1732421452760,-500.0,0.00043797,2]
[343183310,1732421452771,-500.0,0.00043797,2]
[343183311,1732421452782,-500.0,0.00043797,2]
[343183312,1732421452792,-500.0,0.00043797,2]
[343183313,1732421452802,-246.25774196,0.00043797,2]
[343183314,1732421452812,-500.0,0.00043797,2]
[343183315,1732421452822,-500.0,0.00043797,2]
[343183316,1732421452833,-500.0,0.00043797,2]
[343183317,1732421452843,-3544.03,0.00043797,2]
[343183318,1732421452854,-500.0,0.00043797,2]
[343183319,1732421452864,-3544.03,0.00043797,2]
[343183320,1732421452875,-528.00921187,0.00043797,2]
[343183321,1732421452886,-500.0,0.00043797,2]
[343183322,1732421452899,-500.0,0.00043797,2]
[343183323,1732421452911,-611.03,0.00043797,2]
[343183324,1732421452921,-611.03,0.00043797,2]
[343183325,1732421452932,-611.03,0.00043797,2]
[343183326,1732421452944,-500.0,0.00043797,2]
[343183327,1732421452954,-500.0,0.00043797,2]
[343183328,1732421452964,-619.28915034,0.00043797,2]
[343183329,1732421452976,-500.0,0.00043797,2]
[343183330,1732421452987,-420.5805125,0.00043797,2]
[343183331,1732421452998,-500.0,0.00043797,2]
[343183332,1732421453008,-490.69727636,0.00043797,2]
[343183333,1732421453019,-1248.74,0.00043797,2]
[343183334,1732421453028,-500.0,0.00043797,2]
[343183335,1732421453038,-1248.74,0.00043797,2]
[343183336,1732421453048,-500.0,0.00043797,2]
[343183337,1732421453059,-500.0,0.00043797,2]
[343183338,1732421453069,-500.0,0.00043797,2]
[343183339,1732421453079,-781.64880748,0.00043797,2]
[343183340,1732421453089,-500.0,0.00043797,2]
[343183341,1732421453100,-500.0,0.00043797,2]
[343183342,1732421453110,-500.0,0.00043797,2]
[343183343,1732421453120,-500.0,0.00043797,2]
[343183344,1732421453130,-500.0,0.00043797,2]
[343183345,1732421453141,-500.0,0.00043797,2]
[343183346,1732421453151,-500.0,0.00043797,2]
[343183347,1732421453165,-725.44,0.00043797,2]
[343183348,1732421453177,-725.44,0.00043797,2]
[343183349,1732421453187,-500.0,0.00043797,2]
[343183350,1732421453197,-500.0,0.00043797,2]
[343183351,1732421453208,-562.94546186,0.00043797,2]
[343183352,1732421453218,-500.0,0.00043797,2]
[343183353,1732421453228,-500.0,0.00043797,2]
[343183354,1732421453239,-1622.28,0.00043797,2]
[343183355,1732421453250,-1622.28,0.00043797,2]
[343183356,1732421453260,-500.0,0.00043797,2]
[343183357,1732421453270,-500.0,0.00043797,2]
[343183358,1732421453280,-1601.16,0.00043797,2]
[343183359,1732421453291,-1601.16,0.00043797,2]
[343183360,1732421453301,-1010.91,0.00043797,2]
[343183361,1732421453311,-1010.91,0.00043797,2]
[343183362,1732421453321,-500.0,0.00043797,2]
[343183363,1732421453330,-270.55607714,0.00043797,2]
[343183364,1732421453340,-500.0,0.00043797,2]
[343183365,1732421453349,-500.0,0.00043797,2]
[343183366,1732421453359,-500.0,0.00043797,2]
[343183367,1732421453369,-1151.99,0.00043797,2]
[343183368,1732421453379,-1151.99,0.00043797,2]
[343183369,1732421453389,-500.0,0.00043797,2]
[343183370,1732421453399,-257.74002618,0.00043797,2]
[343183371,1732421453411,-500.0,0.00043797,2]
[343183372,1732421453421,-500.0,0.00043797,2]
[343183373,1732421453431,-500.0,0.00043797,2]
[343183374,1732421453441,-407.5371398,0.00043797,2]
[343183375,1732421453451,-500.0,0.00043797,2]
[343183376,1732421453461,-571.46893682,0.00043797,2]
[343183377,1732421453471,-500.0,0.00043797,2]
[343183378,1732421453480,-500.0,0.00043797,2]
[343183379,1732421453490,-500.0,0.00043797,2]
[343183380,1732421453500,-500.0,0.00043797,2]
[343183381,1732421453509,-219.48334023,0.00043797,2]
[343183382,1732421453668,-500.0,0.00043797,2]
[343183383,1732421453678,-723.91,0.00043797,2]
[343183384,1732421453688,-723.91,0.00043797,2]
[343183385,1732421453698,-500.0,0.00043797,2]
[343183386,1732421453708,-508.98800256,0.00043797,2]
[343183387,1732421453718,-1046.95,0.00043797,2]
[343183388,1732421453728,-1046.95,0.00043797,2]
[343183389,1732421453737,-500.0,0.00043797,2]
[343183390,1732421453747,-500.0,0.00043797,2]
[343183391,1732421453756,-500.0,0.00043797,2]
[343183392,1732421453766,-500.0,0.00043797,2]
[343183393,1732421453776,-500.0,0.00043797,2]
[343183394,1732421453786,-517.4677532,0.00043797,2]
[343183395,1732421453797,-974.29,0.00043797,2]
[343183396,1732421453807,-974.29,0.00043797,2]
[343183397,1732421453816,-485.63287756,0.00043797,2]
[343183398,1732421453826,-500.0,0.00043797,2]
[343183399,1732421453836,-453.79765134,0.00043797,2]
[343183400,1732421453845,-500.0,0.00043797,2]
[343183401,1732421453855,-500.0,0.00043797,2]
[343183402,1732421453865,-500.0,0.00043797,2]
[343183403,1732421453875,-500.0,0.00043797,2]
[343183404,1732421453885,-500.0,0.00043797,2]
[343183405,1732421453896,-500.0,0.00043797,2]
[343183406,1732421453910,-500.0,0.00043797,2]
[343183407,1732421453919,-500.0,0.00043797,2]
[343183408,1732421453928,-500.0,0.00043797,2]
[343183409,1732421453938,-500.0,0.00043797,2]
[343183410,1732421453949,-501.74,0.00043797,2]
[343183411,1732421453959,-501.74,0.00043797,2]
[343183412,1732421453968,-500.0,0.00043797,2]
[343183413,1732421453979,-470.99077165,0.00043797,2]
[343183414,1732421453988,-2200.27,0.00043797,2]
[343183415,1732421453999,-2200.27,0.00043797,2]
[343183416,1732421454009,-500.0,0.00043797,2]
[343183417,1732421454019,-500.0,0.00043797,2]
[343183418,1732421454028,-500.0,0.00043797,2]
[343183419,1732421454038,-500.0,0.00043797,2]
[343183420,1732421454049,-397.58468998,0.00043797,2]
[343183421,1732421454059,-628.78,0.00043797,2]
[343183422,1732421454070,-628.78,0.00043797,2]
[343183423,1732421454079,-500.0,0.00043797,2]
[343183424,1732421454088,-500.0,0.00043797,2]
[343183425,1732421454096,-1850.04,0.00043797,2]
[343183426,1732421454105,-1850.04,0.00043797,2]
[343183427,1732421454113,-500.0,0.00043797,2]
[343183428,1732421454121,-500.0,0.00043797,2]
[343183429,1732421454129,-547.77751551,0.00043797,2]
[343183430,1732421454138,-500.0,0.00043797,2]
[343183431,1732421454149,-500.0,0.00043797,2]
[343183432,1732421454158,-500.0,0.00043797,2]
[343183433,1732421454169,-500.0,0.00043797,2]
[343183434,1732421454179,-500.0,0.00043797,2]
[343183435,1732421454189,-500.0,0.00043797,2]
[343183436,1732421454199,-500.0,0.00043797,2]
[343183437,1732421454210,-500.0,0.00043797,2]
[343183438,1732421454220,-500.0,0.00043797,2]
[343183439,1732421454229,-500.0,0.00043797,2]
[343183440,1732421454239,-500.0,0.00043797,2]
[343183441,1732421454250,-500.0,0.00043797,2]
[343183442,1732421454260,-500.0,0.00043797,2]
[343183443,1732421454270,-500.0,0.00043797,2]
[343183444,1732421454280,-500.0,0.00043797,2]
[343183445,1732421454290,-212.59946205,0.00043797,2]
[343183446,1732421454300,-211.7,0.00043797,2]
[343183447,1732421454310,-500.0,0.00043797,2]
[343183448,1732421454319,-305.06769516,0.00043797,2]
[343183449,1732421454330,-321.13958024,0.00043797,2]
[343183450,1732421454339,-500.0,0.00043797,2]
[343183451,1732421454349,-500.0,0.00043797,2]
[343183452,1732421454359,-500.0,0.00043797,2]
[343183453,1732421454369,-500.0,0.00043797,2]
[343183454,1732421454379,-500.0,0.00043797,2]
[343183455,1732421454390,-500.0,0.00043797,2]
[343183456,1732421454400,-424.14123353,0.00043797,2]
[343183457,1732421454412,-500.0,0.00043797,2]
[343183458,1732421454421,-500.0,0.00043797,2]
[343183459,1732421454431,-500.0,0.00043797,2]
[343183460,1732421454441,-500.0,0.00043797,2]
[343183461,1732421454450,-500.0,0.00043797,2]
[343183462,1732421454459,-500.0,0.00043797,2]
[343183463,1732421454470,-500.0,0.00043797,2]
[343183464,1732421454480,-151.69686099,0.00043797,2]
[343183465,1732421454490,-500.0,0.00043797,2]
[343183466,1732421454500,-500.0,0.00043797,2]
[343183467,1732421454509,-500.0,0.00043797,2]
[343183468,1732421454519,-500.0,0.00043797,2]
[343183469,1732421454529,-500.0,0.00043797,2]
[343183470,1732421454538,-443.63326536,0.00043797,2]
[343183471,1732421454548,-2220.12,0.00043797,2]
[343183472,1732421454558,-2220.12,0.00043797,2]
[343183473,1732421454567,-237.74897898,0.00043797,2]
[343183474,1732421454577,-522.35525878,0.00043797,2]
[343183475,1732421454587,-500.0,0.00043797,2]
[343183476,1732421454596,-500.0,0.00043797,2]
[343183477,1732421454607,-218.16428552,0.00043797,2]
[343183478,1732421454617,-741.0,0.00043797,2]
[343183479,1732421454626,-741.0,0.00043797,2]
[343183480,1732421454636,-500.0,0.00043797,2]
[343183481,1732421454646,-500.0,0.00043797,2]
[343183482,1732421454656,-520.58051404,0.00043797,2]
[343183483,1732421454668,-500.0,0.00043797,2]
[343183484,1732421454678,-500.0,0.00043797,2]
[343183485,1732421454688,-500.0,0.00043797,2]
[343183486,1732421454699,-514.03113043,0.00043797,2]
[343183487,1732421454708,-500.0,0.00043797,2]
[343183488,1732421454719,-500.0,0.00043797,2]
[343183489,1732421454729,-641.1836002,0.00043797,2]
[343183490,1732421454740,-533.63941824,0.00043797,2]
[343183491,1732421454750,-500.0,0.00043797,2]
[343183492,1732421454760,-500.0,0.00043797,2]
[343183493,1732421454770,-500.0,0.00043797,2]
[343183494,1732421454780,-500.0,0.00043797,2]
[343183495,1732421454790,-500.0,0.00043797,2]
[343183496,1732421454800,-451.84605289,0.00043797,2]
[343183497,1732421454811,-500.0,0.00043797,2]
[343183498,1732421454820,-500.0,0.00043797,2]
[343183499,1732421454830,-500.0,0.00043797,2]
[343183500,1732421454840,-500.0,0.00043797,2]
[343183501,1732421454850,-500.0,0.00043797,2]
[343183502,1732421454859,-500.0,0.00043797,2]
[343183503,1732421454869,-500.0,0.00043797,2]
[343183504,1732421454879,-500.0,0.00043797,2]
[343183505,1732421454890,-500.0,0.00043797,2]
[343183506,1732421454905,-500.0,0.00043797,2]
[343183507,1732421454918,-500.0,0.00043797,2]
[343183508,1732421454928,-500.0,0.00043797,2]
[343183509,1732421454939,-592.83452085,0.00043797,2]
[343183510,1732421454951,-500.0,0.00043797,2]
[343183511,1732421454960,-500.0,0.00043797,2]
[343183512,1732421454971,-500.0,0.00043797,2]
[343183513,1732421454981,-500.0,0.00043797,2]
[343183514,1732421454991,-500.0,0.00043797,2]
[343183515,1732421455000,-10938.6379,0.00043798,2]
[343183516,1732421455011,-151.0,0.00043798,14]
[343183517,1732421455020,-151.0,0.00043798,14]
[343183518,1732421455030,-153.113757,0.00043798,14]
[343183519,1732421455039,-151.577512,0.00043798,14]
[343183520,1732421455049,-19120.14194728,0.00043798,120]
[343183521,1732421455059,-6900.0,0.000438,15]
[343183522,1732421455069,-150.0,0.00043812,2]
[343183523,1732421455078,-1659.22,0.00043835,120]
[343183524,1732421455088,-500.0,0.00043871,2]
[343183525,1732421455098,-500.0,0.00043871,2]
[343183526,1732421455107,-500.0,0.00043871,2]
[343183527,1732421455116,-1046.95,0.00043871,2]
[343183528,1732421455126,-150.01,0.00043872,2]
[343183529,1732421455135,-3475.97771949,0.00043872,2]
[343183530,1732421455144,-1000.0,0.00043873,2]
[343183531,1732421455154,-1000.0,0.00043873,2]
[343183532,1732421455168,-1000.0,0.00043873,2]
[343183533,1732421455177,-1000.0,0.00043873,2]
[343183534,1732421455187,-1000.0,0.00043873,2]
[343183535,1732421455196,-1000.0,0.00043873,2]
[343183536,1732421455206,-531.91257862,0.00043873,2]
[343183537,1732421455215,-441.23247949,0.00043878,2]
[343183538,1732421455225,-5285.01568236,0.00043879,2]
[343183539,1732421455235,-17036.41160256,0.00043881,2]
[343183540,1732421455244,-613.81,0.00043884,2]
[343183541,1732421455254,-500.0,0.00043884,2]
[343183542,1732421455263,-500.0,0.00043884,2]
[343183543,1732421455274,-1248.74,0.00043884,2]
[343183544,1732421455283,-725.44,0.00043884,2]
[343183545,1732421455293,-1601.16,0.00043884,2]
[343183546,1732421455303,-500.0,0.00043884,2]
[343183547,1732421455313,-500.0,0.00043884,2]
[343183548,1732421455322,-500.0,0.00043884,2]
[343183549,1732421455331,-501.74,0.00043884,2]
[343183550,1732421455341,-628.78,0.00043884,2]
[343183551,1732421455351,-4701.61,0.00043884,2]
[343183552,1732421455361,-500.0,0.00043884,2]
[343183553,1732421455371,-500.0,0.00043884,2]
[343183554,1732421455381,-1783.96,0.00043884,2]
[343183555,1732421455391,-500.0,0.00043884,2]
[343183556,1732421455401,-7163.9,0.00043884,2]
[343183557,1732421455413,-500.0,0.00043884,2]
[343183558,1732421455423,-741.0,0.00043884,2]
[343183559,1732421455432,-500.0,0.00043884,2]
[343183560,1732421455442,-501.52140652,0.00043884,2]
[343183561,1732421455452,-216003.10944235,0.00043885,2]
[343183562,1732421455461,-17036.41160256,0.0004389,2]
[343183563,1732421455471,-500.0,0.00043891,2]
[343183564,1732421455481,-398.03468584,0.00043891,2]
[343183565,1732421455491,-500.0,0.00043891,2]
[343183566,1732421455500,-1046.95,0.00043891,2]
[343183567,1732421455510,-33541.07701574,0.00043892,2]
[343183568,1732421455519,-441.23247949,0.00043895,2]
[343183569,1732421455529,-500.0,0.00043896,2]
[343183570,1732421455538,-500.0,0.00043896,2]
[343183571,1732421455547,-500.0,0.00043896,2]
[343183572,1732421455556,-500.0,0.00043896,2]
[343183573,1732421455566,-380.85708982,0.00043896,2]
[343183574,1732421455575,-534.44770933,0.00043896,2]
[343183575,1732421455584,-500.0,0.00043896,2]
[343183576,1732421455594,-500.0,0.00043896,2]
[343183577,1732421455605,-500.0,0.00043896,2]
[343183578,1732421455615,-500.0,0.00043896,2]
[343183579,1732421455624,-500.0,0.00043896,2]
[343183580,1732421455634,-500.0,0.00043896,2]
[343183581,1732421455643,-1427.83,0.00043896,2]
[343183582,1732421455653,-500.0,0.00043896,2]
[343183583,1732421455663,-539.25,0.00043896,2]
[343183584,1732421455673,-500.0,0.00043896,2]
[343183585,1732421455682,-168.0,0.00043896,2]
[343183586,1732421455692,-500.0,0.00043896,2]
[343183587,1732421455702,-500.0,0.00043896,2]
[343183588,1732421455711,-500.0,0.00043896,2]
[343183589,1732421455720,-723.02,0.00043896,2]
[343183590,1732421455730,-797.24,0.00043896,2]
[343183591,1732421455740,-500.0,0.00043896,2]
[343183592,1732421455749,-500.0,0.00043896,2]
[343183593,1732421455759,-500.0,0.00043896,2]
[343183594,1732421455768,-806.19,0.00043896,2]
[343183595,1732421455777,-500.0,0.00043896,2]
[343183596,1732421455787,-500.0,0.00043896,2]
[343183597,1732421455796,-1054.97,0.00043896,2]
[343183598,1732421455806,-500.0,0.00043896,2]
[343183599,1732421455816,-747.87,0.00043896,2]
[343183600,1732421455826,-869.22,0.00043896,2]
[343183601,1732421455835,-378.57713818,0.00043896,2]
[343183602,1732421455845,-718.12,0.00043896,2]
[343183603,1732421455855,-500.0,0.00043896,2]
[343183604,1732421455865,-392.95300811,0.00043896,2]
[343183605,1732421455875,-500.0,0.00043896,2]
[343183606,1732421455885,-500.0,0.00043896,2]
[343183607,1732421455898,-945.01,0.00043896,2]
[343183608,1732421455908,-283.8331908,0.00043896,2]
[343183609,1732421455920,-500.0,0.00043896,2]
[343183610,1732421455929,-500.0,0.00043896,2]
[343183611,1732421455939,-783.45,0.00043896,2]
[343183612,1732421455949,-500.0,0.00043896,2]
[343183613,1732421455959,-500.0,0.00043896,2]
[343183614,1732421455968,-450.74775626,0.00043896,2]
[343183615,1732421455980,-500.0,0.00043896,2]
[343183616,1732421455991,-500.0,0.00043896,2]